fUSD/lending_fUSD_20240109
["ID","MTS","AMOUNT","RATE_DAILY","PERIOD"]
[310931704,1704822713120,-500.0,0.0004126,30]
[310931705,1704822713130,-500.0,0.0004126,30]
[310931706,1704822713140,-543.96,0.0004126,30]
[310931707,1704822713150,-500.0,0.0004126,30]
[310931708,1704822713159,-1104.04,0.0004126,30]
[310931709,1704822713169,-500.0,0.0004126,30]
[310931710,1704822713179,-500.0,0.0004126,30]
[310931711,1704822713188,-651.83,0.0004126,30]
[310931712,1704822713198,-2707.71,0.0004126,30]
[310931713,1704822713207,-500.0,0.0004126,30]
[310931714,1704822713217,-500.0,0.0004126,2]
[310931715,1704822713227,-196.82564927,0.0004126,30]
[310931716,1704822713236,-851.87,0.0004126,30]
[310931717,1704822713246,-500.0,0.0004126,30]
[310931718,1704822713256,-708.74,0.0004126,30]
[310931719,1704822713265,-500.0,0.0004126,30]
[310931720,1704822713275,-246.23437609,0.0004126,30]
[310931721,1704822713284,-500.0,0.0004126,30]
[310931722,1704822713293,-596.03,0.0004126,30]
[310931723,1704822713303,-1208.31,0.0004126,30]
[310931724,1704822713313,-859.98,0.0004126,30]
[310931725,1704822713322,-1009.5,0.0004126,30]
[310931726,1704822713332,-1834.86,0.0004126,30]
[310931727,1704822713342,-500.0,0.0004126,30]
[310931728,1704822713352,-2228.31,0.0004126,30]
[310931729,1704822713363,-500.0,0.0004126,30]
[310931730,1704822713373,-500.0,0.0004126,30]
[310931731,1704822713383,-500.0,0.0004126,30]
[310931732,1704822713392,-500.0,0.0004126,30]
[310931733,1704822713402,-500.0,0.0004126,30]
[310931734,1704822713411,-758.85,0.0004126,30]
[310931735,1704822713421,-850.13,0.0004126,30]
[310931736,1704822713430,-500.0,0.0004126,30]
[310931737,1704822713440,-1653.94,0.0004126,30]
[310931738,1704822713450,-657.1,0.0004126,30]
[310931739,1704822713459,-500.0,0.0004126,30]
[310931740,1704822713470,-2251.85,0.0004126,30]
[310931741,1704822713481,-500.0,0.0004126,30]
[310931742,1704822713494,-259.55346491,0.0004126,30]
[310931743,1704822713503,-1855.79,0.0004126,30]
[310931744,1704822713513,-1305.33,0.0004126,30]
[310931745,1704822713523,-500.0,0.0004126,30]
[310931746,1704822713532,-500.0,0.0004126,30]
[310931747,1704822713542,-488.2523187,0.0004126,30]
[310931748,1704822713552,-1047.74,0.0004126,30]
[310931749,1704822713561,-362.502904,0.0004126,30]
[310931750,1704822713571,-500.0,0.0004126,30]
[310931751,1704822713581,-500.0,0.0004126,30]
[310931752,1704822713590,-2864.14,0.0004126,30]
[310931753,1704822713600,-500.0,0.0004126,30]
[310931754,1704822713609,-500.0,0.0004126,30]
[310931755,1704822713618,-500.0,0.0004126,30]
[310931756,1704822713627,-500.0,0.0004126,30]
[310931757,1704822713637,-500.0,0.0004126,30]
[310931758,1704822713646,-514.02,0.0004126,30]
[310931759,1704822713656,-942.34,0.0004126,30]
[310931760,1704822713666,-1069.4,0.0004126,30]
[310931761,1704822713675,-2011.82,0.0004126,30]
[310931762,1704822713684,-500.0,0.0004126,30]
[310931763,1704822713694,-500.0,0.0004126,30]
[310931764,1704822713704,-1000.0,0.0004126,14]
[310931765,1704822713713,-500.0,0.0004126,30]
[310931766,1704822713723,-516.73754581,0.0004126,30]
[310931767,1704822713733,-2179.29,0.0004126,30]
[310931768,1704822713743,-517.58085307,0.0004126,30]
[310931769,1704822713752,-500.0,0.0004126,30]
[310931770,1704822713763,-1226.36,0.0004126,30]
[310931771,1704822713773,-500.0,0.0004126,30]
[310931772,1704822713782,-1543.99,0.0004126,30]
[310931773,1704822713793,-500.0,0.0004126,30]
[310931774,1704822713802,-1167.82,0.0004126,30]
[310931775,1704822713812,-500.0,0.0004126,30]
[310931776,1704822713822,-1662.23,0.0004126,30]
[310931777,1704822713831,-650.25,0.0004126,30]
[310931778,1704822713841,-500.0,0.0004126,30]
[310931779,1704822713850,-500.0,0.0004126,30]
[310931780,1704822713860,-1333.2,0.0004126,30]
[310931781,1704822713869,-593.34,0.0004126,30]
[310931782,1704822713879,-1539.75,0.0004126,30]
[310931783,1704822713888,-500.0,0.0004126,30]
[310931784,1704822713897,-1120.58,0.0004126,30]
[310931785,1704822713906,-512.04818419,0.0004126,30]
[310931786,1704822713916,-500.0,0.0004126,30]
[310931787,1704822713925,-500.0,0.0004126,30]
[310931788,1704822713934,-500.0,0.0004126,30]
[310931789,1704822713943,-577.44,0.0004126,30]
[310931790,1704822713952,-500.0,0.0004126,30]
[310931791,1704822713962,-2132.61,0.0004126,30]
[310931792,1704822713971,-2334.2,0.0004126,30]
[310931793,1704822713980,-717.62,0.0004126,30]
[310931794,1704822713990,-2030.29,0.0004126,30]
[310931795,1704822713999,-500.0,0.0004126,30]
[310931796,1704822714009,-500.0,0.0004126,30]
[310931797,1704822714018,-820.59,0.0004126,30]
[310931798,1704822714028,-500.0,0.0004126,30]
[310931799,1704822714038,-500.0,0.0004126,30]
[310931800,1704822714047,-500.0,0.0004126,30]
[310931801,1704822714057,-500.0,0.0004126,30]
[310931802,1704822714067,-500.0,0.0004126,30]
[310931803,1704822714076,-500.0,0.0004126,30]
[310931804,1704822714086,-648.37,0.0004126,30]
[310931805,1704822714095,-500.0,0.0004126,30]
[310931806,1704822714105,-2212.18,0.0004126,30]
[310931807,1704822714115,-500.0,0.0004126,30]
[310931808,1704822714124,-297.92266339,0.0004126,30]
[310931809,1704822714133,-500.0,0.0004126,30]
[310931810,1704822714143,-500.0,0.0004126,30]
[310931811,1704822714153,-500.0,0.0004126,30]
[310931812,1704822714162,-500.0,0.0004126,30]
[310931813,1704822714172,-500.0,0.0004126,30]
[310931814,1704822714181,-500.0,0.0004126,30]
[310931815,1704822714191,-1957.26,0.0004126,30]
[310931816,1704822714200,-500.0,0.0004126,30]
[310931817,1704822714210,-500.0,0.0004126,30]
[310931818,1704822714220,-513.47226703,0.0004126,30]
[310931819,1704822714230,-500.0,0.0004126,30]
[310931820,1704822714239,-789.94,0.0004126,7]
[310931821,1704822714249,-524.13,0.0004126,30]
[310931822,1704822714258,-1295.45,0.0004126,30]
[310931823,1704822714267,-500.0,0.0004126,30]
[310931824,1704822714277,-500.0,0.0004126,30]
[310931825,1704822714287,-774.08,0.0004126,30]
[310931826,1704822714296,-500.0,0.0004126,30]
[310931827,1704822714306,-500.0,0.0004126,30]
[310931828,1704822714315,-500.0,0.0004126,30]
[310931829,1704822714325,-1177.5,0.0004126,30]
[310931830,1704822714335,-846.58,0.0004126,30]
[310931831,1704822714344,-626.38,0.0004126,30]
[310931832,1704822714354,-500.0,0.0004126,30]
[310931833,1704822714363,-1523.1,0.0004126,30]
[310931834,1704822714373,-1815.37,0.0004126,30]
[310931835,1704822714383,-1680.4,0.0004126,30]
[310931836,1704822714392,-500.0,0.0004126,30]
[310931837,1704822714402,-495.15072421,0.0004126,30]
[310931838,1704822714411,-500.0,0.0004126,30]
[310931839,1704822714421,-500.0,0.0004126,30]
[310931840,1704822714430,-500.0,0.0004126,30]
[310931841,1704822714441,-1453.99,0.0004126,30]
[310931842,1704822714451,-500.0,0.0004126,30]
[310931843,1704822714461,-500.0,0.0004126,30]
[310931844,1704822714472,-522.28,0.0004126,30]
[310931845,1704822714485,-500.0,0.0004126,30]
[310931846,1704822714496,-741.95,0.0004126,30]
[310931847,1704822714506,-500.0,0.0004126,30]
[310931848,1704822714515,-2160.84,0.0004126,30]
[310931849,1704822714525,-500.0,0.0004126,30]
[310931850,1704822714535,-1117.93,0.0004126,30]
[310931851,1704822714544,-976.55,0.0004126,30]
[310931852,1704822714553,-500.0,0.0004126,30]
[310931853,1704822714563,-602.19,0.0004126,30]
[310931854,1704822714572,-785.61,0.0004126,30]
[310931855,1704822714582,-365.28094373,0.0004126,30]
[310931856,1704822714592,-500.0,0.0004126,30]
[310931857,1704822714601,-500.0,0.0004126,30]
[310931858,1704822714611,-542.99427896,0.0004126,30]
[310931859,1704822714620,-1722.63,0.0004126,30]
[310931860,1704822714630,-625.26,0.0004126,30]
[310931861,1704822714639,-500.0,0.0004126,30]
[310931862,1704822714648,-253.38663888,0.0004126,30]
[310931863,1704822714657,-500.0,0.0004126,30]
[310931864,1704822714666,-1678.63,0.0004126,30]
[310931865,1704822714676,-500.0,0.0004126,30]
[310931866,1704822714685,-649.03,0.0004126,30]
[310931867,1704822714695,-534.61,0.0004126,30]
[310931868,1704822714704,-301.8167447,0.0004126,30]
[310931869,1704822714713,-1131.06,0.0004126,30]
[310931870,1704822714723,-500.0,0.0004126,30]
[310931871,1704822714732,-500.0,0.0004126,30]
[310931872,1704822714741,-500.0,0.0004126,30]
[310931873,1704822714751,-1859.73,0.0004126,30]
[310931874,1704822714760,-500.0,0.0004126,30]
[310931875,1704822714770,-500.0,0.0004126,30]
[310931876,1704822714779,-2434.09,0.0004126,30]
[310931877,1704822714789,-500.0,0.0004126,30]
[310931878,1704822714798,-709.81,0.0004126,30]
[310931879,1704822714808,-500.0,0.0004126,30]
[310931880,1704822714817,-500.0,0.0004126,30]
[310931881,1704822714827,-500.0,0.0004126,30]
[310931882,1704822714836,-1393.92,0.0004126,30]
[310931883,1704822714846,-523.01518844,0.0004126,30]
[310931884,1704822714855,-2143.09,0.0004126,30]
[310931885,1704822714865,-500.0,0.0004126,30]
[310931886,1704822714874,-500.0,0.0004126,30]
[310931887,1704822714884,-500.0,0.0004126,30]
[310931888,1704822714894,-1175.4,0.0004126,30]
[310931889,1704822714903,-500.0,0.0004126,30]
[310931890,1704822714913,-542.05700556,0.0004126,30]
[310931891,1704822714922,-500.0,0.0004126,30]
[310931892,1704822714932,-911.8,0.0004126,30]
[310931893,1704822714942,-500.0,0.0004126,30]
[310931894,1704822714951,-2361.89,0.0004126,30]
[310931895,1704822714960,-2000.0,0.0004126,30]
[310931896,1704822714970,-500.0,0.0004126,30]
[310931897,1704822714980,-1811.74,0.0004126,30]
[310931898,1704822714989,-500.0,0.0004126,30]
[310931899,1704822714999,-651.7,0.0004126,30]
[310931900,1704822715008,-1064.25,0.0004126,30]
[310931901,1704822715017,-2616.95,0.0004126,30]
[310931902,1704822715027,-500.0,0.0004126,7]
[310931903,1704822715036,-1225.92,0.0004126,30]
[310931904,1704822715046,-558.53,0.0004126,30]
[310931905,1704822715055,-867.77,0.0004126,30]
[310931906,1704822715065,-500.0,0.0004126,30]
[310931907,1704822715074,-1715.96,0.0004126,30]
[310931908,1704822715084,-938.31,0.0004126,30]
[310931909,1704822715189,-930.54,0.0004126,30]
[310931910,1704822715199,-3610.35,0.0004126,30]
[310931911,1704822715209,-500.0,0.0004126,30]
[310931912,1704822715219,-500.0,0.0004126,30]
[310931913,1704822715228,-500.0,0.0004126,30]
[310931914,1704822715238,-1230.33,0.0004126,30]
[310931915,1704822715247,-500.0,0.0004126,30]
[310931916,1704822715256,-500.0,0.0004126,30]
[310931917,1704822715265,-500.0,0.0004126,30]
[310931918,1704822715275,-500.0,0.0004126,30]
[310931919,1704822715284,-825.9,0.0004126,30]
[310931920,1704822715293,-500.0,0.0004126,30]
[310931921,1704822715303,-1620.01,0.0004126,30]
[310931922,1704822715313,-500.0,0.0004126,30]
[310931923,1704822715322,-500.0,0.0004126,30]
[310931924,1704822715332,-500.0,0.0004126,5]
[310931925,1704822715342,-47067.85,0.0004126,30]
[310931926,1704822715352,-2088.17,0.0004126,30]
[310931927,1704822715362,-772.41,0.0004126,30]
[310931928,1704822715372,-342.76325891,0.0004126,30]
[310931929,1704822715381,-500.0,0.0004126,30]
[310931930,1704822715390,-500.0,0.0004126,30]
[310931931,1704822715400,-500.0,0.0004126,30]
[310931932,1704822715410,-617.74,0.0004126,30]
[310931933,1704822715419,-500.0,0.0004126,30]
[310931934,1704822715428,-500.0,0.0004126,30]
[310931935,1704822715437,-500.0,0.0004126,30]
[310931936,1704822715446,-635.57,0.0004126,30]
[310931937,1704822715455,-607.62,0.0004126,30]
[310931938,1704822715465,-639.75,0.0004126,30]
[310931939,1704822715476,-500.0,0.0004126,30]
[310931940,1704822715488,-500.0,0.0004126,30]
[310931941,1704822715497,-1279.97,0.0004126,30]
[310931942,1704822715507,-9711.74,0.0004126,30]
[310931943,1704822715517,-500.0,0.0004126,30]
[310931944,1704822715526,-2008.91,0.0004126,30]
[310931945,1704822715536,-500.0,0.0004126,30]
[310931946,1704822715546,-500.0,0.0004126,30]
[310931947,1704822715555,-500.0,0.0004126,30]
[310931948,1704822715566,-2385.47,0.0004126,30]
[310931949,1704822715575,-1000.0,0.0004126,30]
[310931950,1704822715584,-500.0,0.0004126,30]
[310931951,1704822715594,-625.83,0.0004126,30]
[310931952,1704822715603,-1531.31,0.0004126,30]
[310931953,1704822715612,-500.0,0.0004126,30]
[310931954,1704822715621,-522.03425291,0.0004126,30]
[310931955,1704822715630,-500.0,0.0004126,30]
[310931956,1704822715639,-500.0,0.0004126,30]
[310931957,1704822715649,-500.0,0.0004126,30]
[310931958,1704822715659,-5818.31,0.0004126,30]
[310931959,1704822715668,-504.54,0.0004126,30]
[310931960,1704822715678,-500.0,0.0004126,30]
[310931961,1704822715688,-2227.07,0.0004126,30]
[310931962,1704822715698,-500.0,0.0004126,30]
[310931963,1704822715707,-500.0,0.0004126,30]
[310931964,1704822715716,-500.0,0.0004126,30]
[310931965,1704822715727,-574.98770958,0.0004126,30]
[310931966,1704822715736,-500.0,0.0004126,30]
[310931967,1704822715745,-500.0,0.0004126,30]
[310931968,1704822715755,-500.0,0.0004126,30]
[310931969,1704822715765,-1067.05,0.0004126,30]
[310931970,1704822715776,-500.0,0.0004126,30]
[310931971,1704822715789,-500.0,0.0004126,30]
[310931972,1704822715808,-500.0,0.0004126,30]
[310931973,1704822715820,-500.0,0.0004126,30]
[310931974,1704822715830,-500.0,0.0004126,30]
[310931975,1704822715840,-1943.97,0.0004126,30]
[310931976,1704822715849,-7418.59,0.0004126,30]
[310931977,1704822715859,-500.0,0.0004126,30]
[310931978,1704822715868,-500.0,0.0004126,30]
[310931979,1704822715878,-500.0,0.0004126,30]
[310931980,1704822715888,-500.0,0.0004126,30]
[310931981,1704822715897,-500.0,0.0004126,30]
[310931982,1704822715907,-894.02,0.0004126,30]
[310931983,1704822715916,-500.0,0.0004126,30]
[310931984,1704822715925,-1912.66,0.0004126,30]
[310931985,1704822715935,-729.4,0.0004126,30]
[310931986,1704822715944,-2826.17,0.0004126,30]
[310931987,1704822715954,-500.0,0.0004126,30]
[310931988,1704822715964,-588.01301945,0.0004126,30]
[310931989,1704822715973,-746.04,0.0004126,30]
[310931990,1704822715983,-1727.15,0.0004126,30]
[310931991,1704822715993,-500.0,0.0004126,30]
[310931992,1704822716003,-500.0,0.0004126,30]
[310931993,1704822716013,-1546.34,0.0004126,30]
[310931994,1704822716022,-1055.45,0.0004126,30]
[310931995,1704822716031,-800.98,0.0004126,30]
[310931996,1704822716040,-13152.21,0.0004126,30]
[310931997,1704822716050,-5322.78,0.0004126,30]
[310931998,1704822716059,-500.0,0.0004126,30]
[310931999,1704822716068,-500.0,0.0004126,30]
[310932000,1704822716078,-290.82812241,0.0004126,30]
[310932001,1704822716089,-1631.56,0.0004126,30]
[310932002,1704822716098,-500.0,0.0004126,30]
[310932003,1704822716108,-500.0,0.0004126,30]
[310932004,1704822716118,-4266.73,0.0004126,30]
[310932005,1704822716128,-828.04,0.0004126,30]
[310932006,1704822716138,-500.0,0.0004126,30]
[310932007,1704822716148,-500.0,0.0004126,30]
[310932008,1704822716158,-500.0,0.0004126,30]
[310932009,1704822716170,-500.0,0.0004126,30]
[310932010,1704822716181,-517.04,0.0004126,30]
[310932011,1704822716191,-675.39,0.0004126,30]
[310932012,1704822716202,-500.0,0.0004126,30]
[310932013,1704822716212,-2057.01,0.0004126,30]
[310932014,1704822716224,-162.91162403,0.0004126,30]
[310932015,1704822716234,-500.0,0.0004126,30]
[310932016,1704822716244,-500.0,0.0004126,30]
[310932017,1704822716255,-500.0,0.0004126,30]
[310932018,1704822716267,-1487.61,0.0004126,30]
[310932019,1704822716280,-631.53557245,0.0004126,30]
[310932020,1704822716295,-661.04,0.0004126,30]
[310932021,1704822716306,-987.57,0.0004126,30]
[310932022,1704822716316,-1048.77,0.0004126,30]
[310932023,1704822716326,-500.0,0.0004126,30]
[310932024,1704822716335,-1523.98,0.0004126,30]
[310932025,1704822716345,-500.0,0.0004126,30]
[310932026,1704822716355,-3937.86,0.0004126,30]
[310932027,1704822716365,-2062.34,0.0004126,30]
[310932028,1704822716374,-500.0,0.0004126,30]
[310932029,1704822716384,-500.0,0.0004126,30]
[310932030,1704822716394,-500.0,0.0004126,30]
[310932031,1704822716404,-500.0,0.0004126,30]
[310932032,1704822716413,-2352.32,0.0004126,30]
[310932033,1704822716423,-1972.66,0.0004126,30]
[310932034,1704822716433,-500.0,0.0004126,2]
[310932035,1704822716443,-851.78,0.0004126,30]
[310932036,1704822716453,-2511.39,0.0004126,30]
[310932037,1704822716462,-500.0,0.0004126,30]
[310932038,1704822716473,-500.0,0.0004126,30]
[310932039,1704822716484,-1264.22,0.0004126,30]
[310932040,1704822716494,-805.58,0.0004126,30]
[310932041,1704822716504,-500.0,0.0004126,30]
[310932042,1704822716515,-500.0,0.0004126,30]
[310932043,1704822716525,-500.0,0.0004126,30]
[310932044,1704822716535,-561.43301286,0.0004126,30]
[310932045,1704822716545,-635.47,0.0004126,30]
[310932046,1704822716554,-500.0,0.0004126,30]
[310932047,1704822716564,-1416.21,0.0004126,30]
[310932048,1704822716573,-500.0,0.0004126,30]
[310932049,1704822716583,-500.0,0.0004126,30]
[310932050,1704822716592,-500.0,0.0004126,30]
[310932051,1704822716602,-500.0,0.0004126,30]
[310932052,1704822716611,-500.0,0.0004126,30]
[310932053,1704822716621,-500.0,0.0004126,30]
[310932054,1704822716631,-500.0,0.0004126,30]
[310932055,1704822716641,-544.13,0.0004126,30]
[310932056,1704822716650,-1042.3,0.0004126,30]
[310932057,1704822716660,-500.0,0.0004126,30]
[310932058,1704822716670,-500.0,0.0004126,30]
[310932059,1704822716679,-556.85,0.0004126,30]
[310932060,1704822716688,-808.82,0.0004126,30]
[310932061,1704822716698,-2529.67,0.0004126,30]
[310932062,1704822716707,-500.0,0.0004126,30]
[310932063,1704822716717,-3905.38,0.0004126,30]
[310932064,1704822717018,-500.0,0.0004126,30]
[310932065,1704822717028,-500.0,0.0004126,30]
[310932066,1704822717038,-1707.29,0.0004126,30]
[310932067,1704822717047,-757.2,0.0004126,30]
[310932068,1704822717056,-529.59,0.0004126,30]
[310932069,1704822717066,-764.22,0.0004126,30]
[310932070,1704822717075,-3365.69,0.0004126,30]
[310932071,1704822717085,-500.0,0.0004126,30]
[310932072,1704822717095,-1808.46,0.0004126,30]
[310932073,1704822717104,-1356.84,0.0004126,30]
[310932074,1704822717114,-5165.15,0.0004126,30]
[310932075,1704822717123,-500.0,0.0004126,30]
[310932076,1704822717132,-578.39345232,0.0004126,30]
[310932077,1704822717142,-500.0,0.0004126,30]
[310932078,1704822717153,-3314.93,0.0004126,30]
[310932079,1704822717163,-500.0,0.0004126,30]
[310932080,1704822717172,-500.0,0.0004126,30]
[310932081,1704822717182,-7247.09,0.0004126,30]
[310932082,1704822717192,-1000.0,0.0004126,30]
[310932083,1704822717202,-898.87,0.0004126,30]
[310932084,1704822717213,-3230.31,0.0004126,30]
[310932085,1704822717224,-3438.41,0.0004126,30]
[310932086,1704822717234,-325.67238161,0.0004126,30]
[310932087,1704822717244,-680.98,0.0004126,30]
[310932088,1704822717254,-500.0,0.0004126,30]
[310932089,1704822717264,-862.72,0.0004126,30]
[310932090,1704822717274,-875.14,0.0004126,30]
[310932091,1704822717284,-500.0,0.0004126,30]
[310932092,1704822717294,-500.0,0.0004126,30]
[310932093,1704822717304,-500.0,0.0004126,30]
[310932094,1704822717313,-1210.42,0.0004126,30]
[310932095,1704822717323,-1426.64,0.0004126,30]
[310932096,1704822717333,-5227.95,0.0004126,30]
[310932097,1704822717343,-500.0,0.0004126,30]
[310932098,1704822717353,-500.0,0.0004126,30]
[310932099,1704822717363,-500.0,0.0004126,30]
[310932100,1704822717373,-5726.55,0.0004126,30]
[310932101,1704822717383,-500.0,0.0004126,30]
[310932102,1704822717393,-1300.13,0.0004126,30]
[310932103,1704822717401,-3378.07,0.0004126,30]
[310932104,1704822717412,-459.10993299,0.0004126,30]
[310932105,1704822717421,-1055.87,0.0004126,30]
[310932106,1704822717431,-1593.8,0.0004126,30]
[310932107,1704822717441,-1104.5,0.0004126,30]
[310932108,1704822717451,-500.0,0.0004126,30]
[310932109,1704822717461,-1413.79,0.0004126,30]
[310932110,1704822717472,-1163.93,0.0004126,30]
[310932111,1704822717483,-500.0,0.0004126,30]
[310932112,1704822717494,-1244.04,0.0004126,30]
[310932113,1704822717504,-500.0,0.0004126,30]
[310932114,1704822717513,-500.0,0.0004126,30]
[310932115,1704822717523,-571.07,0.0004126,30]
[310932116,1704822717532,-528.07,0.0004126,30]
[310932117,1704822717542,-1396.01,0.0004126,30]
[310932118,1704822717551,-13468.65,0.0004126,30]
[310932119,1704822717561,-9852.84,0.0004126,30]
[310932120,1704822717571,-1725.71,0.0004126,30]
[310932121,1704822717580,-3006.41,0.0004126,30]
[310932122,1704822717589,-3195.82,0.0004126,30]
[310932123,1704822717599,-871.18,0.0004126,30]
[310932124,1704822717608,-500.0,0.0004126,30]
[310932125,1704822717618,-545.63,0.0004126,30]
[310932126,1704822717629,-1303.9,0.0004126,30]
[310932127,1704822717638,-758.06,0.0004126,30]
[310932128,1704822717648,-1287.34,0.0004126,30]
[310932129,1704822717657,-500.0,0.0004126,30]
[310932130,1704822717667,-500.0,0.0004126,30]
[310932131,1704822717677,-650.5,0.0004126,30]
[310932132,1704822717686,-500.0,0.0004126,30]
[310932133,1704822717696,-500.0,0.0004126,30]
[310932134,1704822717706,-1252.77,0.0004126,30]
[310932135,1704822717716,-500.0,0.0004126,30]
[310932136,1704822717727,-2404.72,0.0004126,30]
[310932137,1704822717736,-500.0,0.0004126,30]
[310932138,1704822717745,-7005.02,0.0004126,30]
[310932139,1704822717754,-7036.88,0.0004126,30]
[310932140,1704822717763,-1784.46,0.0004126,30]
[310932141,1704822717773,-1363.7,0.0004126,30]
[310932142,1704822717782,-1306.72,0.0004126,30]
[310932143,1704822717792,-7123.04,0.0004126,30]
[310932144,1704822717802,-649.76,0.0004126,30]
[310932145,1704822717811,-500.0,0.0004126,30]
[310932146,1704822717821,-690.46,0.0004126,30]
[310932147,1704822717831,-500.0,0.0004126,30]
[310932148,1704822717841,-500.0,0.0004126,30]
[310932149,1704822717850,-500.0,0.0004126,30]
[310932150,1704822717859,-500.0,0.0004126,30]
[310932151,1704822717869,-500.0,0.0004126,30]
[310932152,1704822717879,-6945.36,0.0004126,30]
[310932153,1704822717889,-51842.67,0.0004126,30]
[310932154,1704822717898,-617.86,0.0004126,30]
[310932155,1704822717908,-7243.5,0.0004126,30]
[310932156,1704822717918,-3296.93,0.0004126,30]
[310932157,1704822717928,-6850.83,0.0004126,30]
[310932158,1704822717937,-1368.88,0.0004126,30]
[310932159,1704822717947,-528.78452166,0.0004126,30]
[310932160,1704822717956,-500.0,0.0004126,30]
[310932161,1704822717966,-1123.62,0.0004126,30]
[310932162,1704822717977,-1586.08,0.0004126,30]
[310932163,1704822717986,-187.7060374,0.0004126,30]
[310932164,1704822717996,-1722.72,0.0004126,30]
[310932165,1704822718006,-1413.35,0.0004126,30]
[310932166,1704822718016,-500.0,0.0004126,30]
[310932167,1704822718026,-500.0,0.0004126,30]
[310932168,1704822718036,-500.0,0.0004126,30]
[310932169,1704822718046,-1265.95,0.0004126,30]
[310932170,1704822718056,-2237.24,0.0004126,30]
[310932171,1704822718067,-9412.26,0.0004126,30]
[310932172,1704822718077,-1100.01,0.0004126,30]
[310932173,1704822718087,-740.64,0.0004126,30]
[310932174,1704822718098,-1212.17,0.0004126,30]
[310932175,1704822718108,-1030.68,0.0004126,30]
[310932176,1704822718118,-525.09216967,0.0004126,30]
[310932177,1704822718128,-500.0,0.0004126,30]
[310932178,1704822718138,-524.89070798,0.0004126,30]
[310932179,1704822718148,-7243.631803,0.0004126,2]
[310932180,1704822718158,-500.0,0.0004126,30]
[310932181,1704822718167,-522.1348154,0.0004126,30]
[310932182,1704822718178,-2607.42,0.0004126,30]
[310932183,1704822718187,-4372.59,0.0004126,30]
[310932184,1704822718196,-2328.54,0.0004126,30]
[310932185,1704822718206,-500.0,0.0004126,30]
[310932186,1704822718215,-253.10641577,0.0004126,30]
[310932187,1704822718226,-1231.33,0.0004126,30]
[310932188,1704822718235,-500.0,0.0004126,30]
[310932189,1704822718245,-500.0,0.0004126,30]
[310932190,1704822718254,-1182.19,0.0004126,30]
[310932191,1704822718264,-500.0,0.0004126,30]
[310932192,1704822718273,-870.79,0.0004126,30]
[310932193,1704822718283,-500.0,0.0004126,30]
[310932194,1704822718292,-500.0,0.0004126,30]
[310932195,1704822718302,-500.0,0.0004126,30]
[310932196,1704822718311,-500.0,0.0004126,30]
[310932197,1704822718321,-500.0,0.0004126,5]
[310932198,1704822718330,-849.27,0.0004126,30]
[310932199,1704822718340,-16987.16,0.0004126,30]
[310932200,1704822718350,-4904.29,0.0004126,30]
[310932201,1704822718359,-500.0,0.0004126,30]
[310932202,1704822718370,-1457.87,0.0004126,30]
[310932203,1704822718380,-8107.36,0.0004126,30]